bitfinex/quotes_SOLUSD_20211001
["timestamp","ask_amount","ask_price","bid_price","bid_amount"]
[1633113442019,2.08,162.99,162.86,27.24912439]
[1633113442216,2.12176,162.99,162.86,27.24912439]
[1633113442616,2.08,162.99,162.86,27.24912439]
[1633113445922,2.08,162.99,162.86,49.8712847]
[1633113446121,2.08,162.99,162.86,74.71963818]
[1633113446519,2.08,162.99,162.87,4.71275822]
[1633113446722,2.08,162.99,162.86,89.1003272]
[1633113446920,2.08,162.99,162.87,4.71218444]
[1633113447621,2.08,162.99,162.86,89.1003272]
[1633113447819,2.08,162.99,162.87,4.71221596]
[1633113448222,79.5963,163.1,163.09,38.2967]
[1633113448427,171.69568,163.15,163.09,38.27582]
[1633113448622,2.08,163.14,163.09,38.27582]
[1633113466839,19.188,163.14,163.09,38.27582]
[1633113468740,2.08,163.14,163.09,38.27582]
[1633113469743,2.08,163.14,163.09,65.69319282]
[1633113469943,2.08,163.18,163.1,27.01853703]
[1633113470347,2.08,163.18,163.1,81.5728679]
[1633113470942,2.08,163.18,163.1,27.01853703]
[1633113471344,2.08,163.18,163.09,38.27582]
[1633113471543,23.135,163.18,163.09,38.27582]
[1633113472843,2.08,163.18,163.09,38.27582]
[1633113484077,18.885,163.18,163.09,38.27582]
[1633113485676,15.3269,163.17,163.09,38.27582]
[1633113485875,2.08,163.16,163.09,38.27582]
[1633113489679,20.64286763,163.09,163.01,0.0212976]
[1633113489882,2.08,163.08,162.97,0.0212976]
[1633113490079,74.9953,163.08,162.94,0.0212976]
[1633113490881,74.9953,163.08,162.94,4.74334353]
[1633113491080,74.9953,163.08,162.95,0.0212976]
[1633113491681,74.9953,163.08,162.94,0.0212976]
[1633113492282,74.9953,163.08,162.94,4.74191558]
[1633113492486,74.9953,163.08,162.95,0.0212976]
[1633113493784,74.9953,163.08,162.94,4.74191558]
[1633113495485,15.3364,163.07,162.94,0.0212976]
[1633113495684,2.08,163.06,162.94,0.0212976]
[1633113497485,72.9153,163.08,162.94,4.73993029]
[1633113497687,2.58,163.07,162.94,8.2913026]
[1633113498285,2.58,163.07,162.95,3.55111736]
[1633113498588,2.58,163.07,162.96,29.83466914]
[1633113498788,2.58,163.07,162.97,4.73932171]
[1633113499186,2.58,163.07,162.97,8.29008902]
[1633113499587,2.58,163.07,162.97,4.73932171]
[1633113500788,2.58,163.07,162.98,3.55227635]
[1633113500987,2.58,163.07,162.99,22.8729002]
[1633113501386,2.58,163.07,163.0,4.70540722]
[1633113501789,2.58,163.07,162.99,22.8729002]
[1633113502588,90.578832,163.06,162.99,22.8729002]
[1633113502791,2.58,163.05,162.97,0.0212976]
[1633113502989,2.58,163.05,162.92,0.0212976]
[1633113503191,2.58,163.05,162.91,0.0212976]
[1633113503591,2.58,163.05,162.91,25.48455956]
[1633113503789,2.58,163.05,162.92,4.72851641]
[1633113504189,2.58,163.05,162.92,4.70721881]
[1633113511097,2.58,163.05,162.92,12.96720899]
[1633113511295,2.58,163.05,162.92,4.70721881]
[1633113516304,17.994,163.05,162.89,4.70897778]
[1633113517102,74.3318,163.04,162.89,33.7567133]
[1633113517302,2.58,163.03,162.9,4.70958182]
[1633113518104,64.39,163.02,162.9,4.70958182]
[1633113518308,2.58,163.01,162.86,4.7102716]
[1633113518504,66.97,163.0,162.86,4.7102716]
[1633113519703,15.3438,162.99,162.86,4.7102716]
[1633113519904,2.58,162.98,162.86,4.7102716]
[1633113520303,2.58,162.98,162.87,22.91925447]
[1633113520907,2.58,162.98,162.85,44.93]
[1633113521104,2.58,162.98,162.86,4.70909656]
[1633113521305,2.58,162.98,162.85,44.93]
[1633113521708,2.58,162.98,162.86,4.70884023]
[1633113521904,2.58,162.98,162.86,27.0489947]
[1633113522107,2.58,162.98,162.86,22.34015447]
[1633113522906,2.58,162.98,162.85,44.93]
[1633113524410,66.97,162.98,162.85,44.93]
[1633113525411,129.01,162.98,162.85,44.93]
[1633113526510,64.39,162.96,162.85,44.93]
[1633113526714,2.58,162.95,162.85,44.93]
[1633113527710,15.3483,162.94,162.85,44.93]
[1633113527910,2.58,162.93,162.85,44.93]
[1633113529611,64.39,162.91,162.85,44.93]
[1633113529813,17.9329,162.9,162.74,0.0212976]
[1633113530011,17.9329,162.9,162.72,5.33157456]
[1633113530012,17.9329,162.9,162.73,0.0212976]
[1633113530212,64.39,162.88,162.73,0.0212976]
[1633113530413,81.346,162.87,162.73,0.0212976]
[1633113530611,64.39,162.86,162.7,0.0212976]
[1633113530811,2.58,162.85,162.7,0.0212976]
[1633113531613,17.9368,162.85,162.7,0.0212976]
[1633113532414,64.39,162.84,162.7,0.0212976]
[1633113532613,2.58,162.83,162.7,0.0212976]
[1633113533013,64.39,162.82,162.64,5.33254287]
[1633113533213,64.39,162.79,162.63,4.70751332]
[1633113533413,64.39,162.77,162.62,0.0212976]
[1633113533613,2.58,162.76,162.61,4.73008442]
[1633113533812,2.58,162.76,162.62,0.0212976]
[1633113534017,2.58,162.76,162.62,26.6257612]
[1633113534214,2.58,162.76,162.63,64.14203403]
[1633113534416,2.58,162.76,162.64,4.72768049]
[1633113534617,2.58,162.76,162.67,0.0212976]
[1633113535015,2.58,162.76,162.66,23.05807354]
[1633113535216,2.58,162.76,162.67,0.0212976]
[1633113535415,2.58,162.76,162.65,0.0212976]
[1633113535614,2.58,162.76,162.61,0.0212976]
[1633113535815,64.41088,162.75,162.56,4.70814944]
[1633113536016,64.39,162.73,162.55,10.04239882]
[1633113536218,2.58,162.72,162.53,18.30722483]
[1633113536419,2.58,162.72,162.54,28.28691896]
[1633113536623,2.58,162.72,162.55,4.70600187]
[1633113537021,2.58,162.72,162.55,56.96688646]
[1633113537222,2.58,162.72,162.55,47.26088459]
[1633113537822,64.62,162.72,162.55,20.32419876]
[1633113538021,2.58,162.72,162.54,28.30821656]
[1633113539021,64.39,162.71,162.54,28.30821656]
[1633113539225,2.58,162.7,162.54,0.0212976]
[1633113539423,2.58,162.7,162.5,518.95202886]
[1633113539622,2.58,162.7,162.51,0.0212976]
[1633113539823,64.39,162.66,162.5,0.0212976]
[1633113540024,2.58,162.65,162.46,0.0212976]
[1633113540224,64.39,162.63,162.46,0.0212976]
[1633113540426,64.39,162.57,162.46,0.0212976]
[1633113540625,2.58,162.56,162.46,0.0212976]
[1633113540826,64.39,162.55,162.37,4.66752961]
[1633113541024,64.39,162.55,162.38,0.0212976]
[1633113541025,2.58,162.54,162.38,0.0212976]
[1633113541224,2.58,162.54,162.38,28.86503001]
[1633113541525,2.58,162.54,162.39,57.96303695]
[1633113541726,2.58,162.54,162.4,0.0212976]
[1633113542325,2.58,162.54,162.4,27.18032026]
[1633113542526,2.58,162.54,162.41,24.18785264]
[1633113542729,2.58,162.54,162.42,0.0212976]
[1633113543025,2.58,162.54,162.42,4.68468565]
[1633113543225,2.58,162.54,162.43,0.0212976]
[1633113543426,2.58,162.54,162.42,0.0212976]
[1633113545427,2.58,162.54,162.42,25.67809804]
[1633113545628,2.58,162.54,162.43,0.0212976]
[1633113546227,2.58,162.54,162.46,479.67295266]
[1633113546427,2.58,162.54,162.47,0.0212976]
[1633113546628,2.58,162.54,162.43,0.0212976]
[1633113546831,2.58,162.54,162.42,0.0212976]
[1633113547429,26.086,162.54,162.42,0.0212976]
[1633113547628,26.086,162.54,162.41,24.18785264]
[1633113549431,26.086,162.54,162.42,0.0212976]
[1633113550129,26.086,162.54,162.42,25.67809804]
[1633113550329,2.58,162.54,162.43,0.0212976]
[1633113551131,2.58,162.54,162.42,25.67809804]
[1633113551532,2.58,162.54,162.42,25.65680044]
[1633113551932,2.58,162.54,162.41,24.16655504]
[1633113553135,2.58,162.54,162.36,0.11135354]
[1633113553335,2.58,162.54,162.36,0.09005594]
[1633113554134,2.58,162.54,162.36,48.69682171]
[1633113554333,2.58,162.54,162.37,4.66318878]
[1633113554536,2.58,162.54,162.38,23.24177895]
[1633113555534,66.97,162.54,162.38,23.24177895]
[1633113556135,66.97,162.54,162.39,4.66363869]
[1633113556335,66.97,162.54,162.39,29.45773534]
[1633113556535,66.97,162.54,162.4,29.43756868]
[1633113556738,2.58,162.54,162.41,28.03170365]
[1633113556935,2.58,162.54,162.42,4.66465575]
[1633113557138,2.58,162.54,162.42,29.4374548]
[1633113557535,2.58,162.54,162.43,4.66504347]
[1633113557737,2.58,162.54,162.44,22.40988241]
[1633113558334,2.58,162.54,162.45,4.6667042]
[1633113558539,2.58,162.54,162.44,22.40988241]
[1633113560336,2.58,162.54,162.45,4.66945478]
[1633113564338,2.58,162.54,162.46,24.77279905]
[1633113564539,2.58,162.54,162.47,12.9127214]
[1633113564740,2.58,162.54,162.48,23.67090316]
[1633113564939,2.58,162.58,162.49,12.91271011]
[1633113565139,2.58,162.58,162.53,5.34209724]
[1633113565340,2.58,162.58,162.54,24.46229604]
[1633113565539,2.58,162.58,162.55,4.67474703]
[1633113566341,2.58,162.58,162.55,12.91345918]
[1633113566541,2.58,162.58,162.55,4.67474703]
[1633113570042,2.58,162.58,162.55,18.25815389]
[1633113570644,183.39048,162.72,162.55,18.25815389]
[1633113570843,76.0931,162.71,162.55,18.25815389]
[1633113571246,76.0931,162.71,162.57,5.3425933]
[1633113571445,76.0931,162.71,162.58,25.40407239]
[1633113571645,76.0931,162.71,162.59,4.67524694]
[1633113574846,76.0931,162.71,162.54,5.34290365]
[1633113575053,76.0931,162.71,162.52,5.34345132]
[1633113576048,15.3728,162.68,162.52,10.0194245]
[1633113576251,2.58,162.67,162.52,4.67597318]
[1633113576448,2.08,162.67,162.52,4.67597318]
[1633113576852,33.1,162.67,162.48,5.34465286]
[1633113577049,64.39,162.66,162.48,5.34465286]
[1633113577251,33.6,162.65,162.48,5.34465286]
[1633113577450,15.3828,162.58,162.48,5.34465286]
[1633113577652,2.58,162.57,162.44,10.02278952]
[1633113577850,2.58,162.57,162.44,30.13637775]
[1633113578051,2.58,162.57,162.45,4.67773904]
[1633113580452,2.58,162.57,162.45,12.91780501]
[1633113581052,2.58,162.57,162.45,18.2627226]
[1633113581453,2.58,162.57,162.45,10.02265663]
[1633113582053,2.58,162.57,162.45,4.67773904]
[1633113582253,2.58,162.57,162.46,0.0212976]
[1633113582656,2.58,162.57,162.46,4.69725042]
[1633113582859,2.58,162.57,162.47,23.19899899]
[1633113583055,2.58,162.57,162.48,18.25795498]
[1633113584058,2.58,162.6,162.49,0.0212976]
[1633113584255,2.58,162.6,162.51,24.54433538]
[1633113584855,2.58,162.6,162.52,4.69719537]
[1633113585257,2.58,162.6,162.52,12.93571938]
[1633113585459,109.087,162.69,162.52,18.27922612]
[1633113585657,2.58,162.68,162.52,45.88998056]
[1633113585858,2.58,162.68,162.53,13.44702434]
[1633113586059,2.58,162.68,162.55,21.86263204]
[1633113586356,2.58,162.72,162.56,16.11898412]
[1633113586557,2.58,162.72,162.57,10.33090309]
[1633113586758,2.58,162.72,162.58,27.83792065]
[1633113586958,2.58,162.72,162.59,4.98882729]
[1633113587157,2.58,162.72,162.59,7.56882729]
[1633113587358,72.719,162.75,162.6,110.98803889]
[1633113587559,2.58,162.74,162.61,34.69979877]
[1633113587762,2.58,162.74,162.55,0.0212976]
[1633113587763,15.3715,162.7,162.55,0.0212976]
[1633113587962,2.58,162.69,162.55,5.01037108]
[1633113588565,2.58,162.69,162.55,4.98907348]
[1633113588765,2.08,162.69,162.56,28.05996346]
[1633113588964,2.08,162.69,162.57,4.9886029]
[1633113589360,2.08,162.69,162.58,0.0212976]
[1633113590262,2.08,162.69,162.57,4.9886029]
[1633113591060,2.08,162.69,162.57,8.5497256]
[1633113591662,2.08,162.69,162.57,4.9886029]
[1633113592866,2.08,162.69,162.56,28.05996346]
[1633113593965,2.08,162.69,162.57,4.98922429]
[1633113594166,2.08,162.69,162.56,28.05996346]
[1633113594571,2.08,162.69,162.54,3.56211749]
[1633113594783,15.3744,162.67,162.54,3.56211749]
[1633113594985,2.58,162.66,162.48,23.14899399]
[1633113595184,2.58,162.66,162.49,4.64478835]
[1633113595785,0.02088,162.65,162.49,4.64478835]
[1633113595986,2.58,162.64,162.49,4.64478835]
[1633113596186,0.02088,162.63,162.49,4.64478835]
[1633113596387,2.58,162.62,162.49,4.64478835]
[1633113596786,17.9589,162.62,162.49,4.64478835]
[1633113597588,17.9589,162.62,162.5,28.88253198]
[1633113597786,17.9589,162.62,162.45,2.58]
[1633113597988,17.9589,162.62,162.46,4.64456897]
[1633113598788,17.9589,162.62,162.46,28.46989681]
[1633113599187,17.9589,162.62,162.47,4.64465486]
[1633113599587,0.02088,162.61,162.44,4.6447473]
[1633113599789,2.58,162.6,162.41,4.64488448]
[1633113599987,2.60088,162.6,162.41,4.64488448]
[1633113600386,2.60088,162.6,162.42,22.84135295]
[1633113600586,2.60088,162.6,162.43,4.64512151]
[1633113600890,15.3843,162.56,162.43,4.64512151]
[1633113601091,2.58,162.55,162.41,4.64539049]
[1633113603091,2.58,162.55,162.41,32.99788291]
[1633113603290,2.58,162.55,162.42,4.64400722]
[1633113605294,2.58,162.58,162.43,2.58]
[1633113605493,2.58,162.58,162.44,4.64251224]
[1633113605693,2.58,162.58,162.45,24.52307674]
[1633113605892,2.58,162.61,162.46,4.6630248]
[1633113606096,2.58,162.61,162.47,2.58]
[1633113606294,2.58,162.61,162.48,4.6417951]
[1633113606494,2.58,162.61,162.49,2.58]
[1633113606694,2.58,162.61,162.5,4.64224644]
[1633113606898,2.58,162.61,162.51,30.09727789]
[1633113607093,2.58,162.61,162.52,4.64177616]
[1633113607696,2.58,162.61,162.51,30.09727789]
[1633113607895,2.58,162.61,162.52,4.64179232]
[1633113608297,2.58,162.61,162.51,27.51727789]
[1633113608700,2.58,162.61,162.48,413.13325299]
[1633113608896,2.58,162.61,162.48,2.58]
[1633113609096,2.58,162.61,162.47,28.35249242]
[1633113609298,2.58,162.61,162.48,4.64280166]
[1633113609697,2.58,162.61,162.49,23.80872497]
[1633113609895,2.58,162.61,162.5,4.64237819]
[1633113611698,2.58,162.61,162.49,23.80872497]
[1633113612298,17.9597,162.61,162.49,23.80872497]
[1633113612899,17.9597,162.61,162.47,28.35249242]
[1633113613299,17.9597,162.61,162.43,473.71870968]
[1633113613503,45.34046922,162.61,162.44,4.6436591]
[1633113613903,45.34046922,162.61,162.45,21.34027539]
[1633113615304,45.34046922,162.61,162.46,4.64288871]
[1633113622111,17.9597,162.61,162.46,4.64288871]
[1633113622312,2.58,162.61,162.47,2.60088]
[1633113622510,2.58,162.61,162.48,4.66552959]
[1633113622710,2.58,162.61,162.49,2.60088]
[1633113622911,2.58,162.61,162.49,30.88228408]
[1633113623110,2.58,162.61,162.51,29.71661239]
[1633113623311,2.58,162.61,162.52,4.87333181]
[1633113624111,2.58,162.61,162.52,10.21747741]
[1633113624712,2.58,162.67,162.53,2.58]
[1633113624911,2.58,162.67,162.54,0.02088]
[1633113625112,2.58,162.67,162.55,2.58]
[1633113625314,2.58,162.67,162.55,2.60088]
[1633113625512,2.58,162.67,162.57,29.34447636]
[1633113625714,2.58,162.67,162.58,4.87195767]
[1633113626312,2.58,162.67,162.57,29.34447636]
[1633113626713,2.58,162.67,162.52,2.58]
[1633113626915,2.58,162.67,162.53,4.87271935]
[1633113627312,28.2346581,162.67,162.53,4.87271935]
[1633113627715,28.2346581,162.67,162.54,22.73537263]
[1633113628614,28.2346581,162.67,162.49,7.92366006]
[1633113628815,28.2346581,162.67,162.5,4.87265753]
[1633113629015,101.9179581,162.67,162.5,4.87265753]
[1633113629616,101.9179581,162.67,162.5,33.18742673]
[1633113629817,0.02088,162.66,162.51,4.87285242]
[1633113630018,2.58,162.65,162.5,28.3147692]
[1633113630218,28.2555381,162.65,162.46,2.58]
[1633113630420,25.6546581,162.64,162.47,4.87343985]
[1633113630617,17.9584,162.63,162.47,4.87343985]
[1633113631820,17.9584,162.63,162.45,10.21864361]
[1633113632419,17.9584,162.63,162.45,4.87390163]
[1633113633019,15.3784,162.63,162.45,4.87390163]
[1633113633219,31.02,162.62,162.45,4.87390163]
[1633113633420,2.09,162.61,162.46,5.34563375]
[1633113634420,2.09,162.61,162.47,5.34623679]
[1633113634821,26.34276033,162.61,162.45,5.34694193]
[1633113635021,57.34188033,162.61,162.45,5.34694193]
[1633113635420,15.3829,162.58,162.45,5.34694193]
[1633113635621,2.09,162.57,162.45,5.34694193]
[1633113635821,2.09,162.57,162.44,10.22222868]
[1633113636823,31.02,162.61,162.44,10.22222868]
[1633113637027,2.09,162.6,162.49,5.34554005]
[1633113637424,2.09,162.6,162.5,27.54340639]
[1633113637625,2.09,162.6,162.51,4.87423531]
[1633113641327,2.09,162.6,162.47,5.34641088]
[1633113641526,15.3817,162.59,162.47,5.34641088]
[1633113641726,2.09,162.58,162.47,5.34641088]
[1633113642125,2.09,162.58,162.43,4.87509329]
[1633113642126,2.09,162.58,162.48,23.98110266]
[1633113642329,2.09,162.58,162.49,4.8750094]
[1633113643728,2.09,162.58,162.49,4.3750094]
[1633113645029,2.09,162.58,162.44,5.34793293]
[1633113646030,2.09,162.58,162.43,5.34786877]
[1633113647029,2.09,162.58,162.42,26.0518846]
[1633113647829,46.28,162.6,162.43,106.0]
[1633113648029,2.09,162.59,162.43,106.0]
[1633113649330,2.09,162.59,162.43,111.34704651]
[1633113651130,1.59,162.59,162.43,111.34704651]
[1633113651331,1.59,162.59,162.43,106.0]
[1633113651931,15.3849,162.56,162.43,106.0]
[1633113652132,17.4749,162.56,162.43,106.0]
[1633113656333,17.4749,162.56,162.44,0.02088]
[1633113656533,2.09,162.56,162.44,8.44550977]
[1633113656734,2.09,162.56,162.44,13.79173062]
[1633113657534,2.09,162.56,162.44,13.77085062]
[1633113657735,2.09,162.56,162.43,106.0]
[1633113658936,17.4741,162.56,162.43,106.0]
[1633113659134,0.02088,162.55,162.38,5.34879591]
[1633113659336,2.09,162.54,162.38,5.34879591]
[1633113659535,2.11088,162.54,162.38,5.34879591]
[1633113659737,2.11088,162.54,162.39,24.99001416]
[1633113660734,15.3904,162.5,162.39,24.99001416]
[1633113660935,17.4804,162.5,162.39,24.99001416]
[1633113661435,17.4804,162.5,162.37,5.34855509]
[1633113662435,17.4804,162.5,162.37,28.958805]
[1633113662738,17.4804,162.5,162.36,0.09005594]
[1633113662939,23.95671366,162.49,162.36,0.09005594]
[1633113663137,2.09,162.48,162.36,0.09005594]
[1633113663540,26.04671366,162.48,162.36,0.09005594]
[1633113663939,0.02088,162.47,162.36,0.09005594]
[1633113664140,2.09,162.46,162.36,0.09005594]
[1633113664339,2.44697066,162.42,162.3,362.55017457]
[1633113664539,2.09,162.41,162.26,23.20017866]
[1633113664740,2.09,162.41,162.25,5.34845864]
[1633113664939,2.09,162.41,162.22,5.34945935]
[1633113665740,2.09,162.41,162.23,22.46398682]
[1633113666542,26.48004699,162.41,162.23,22.46398682]
[1633113666745,26.48004699,162.41,162.19,25.30051186]
[1633113666746,41.87954699,162.41,162.19,25.30051186]
[1633113666942,2.45243697,162.36,162.19,0.02088]
[1633113667142,2.09,162.35,162.17,0.02088]
[1633113667344,2.09,162.34,162.17,0.02088]
[1633113667541,2.09,162.34,162.15,78.9385]
[1633113667742,26.48004699,162.34,162.16,18.74537641]
[1633113668146,15.4084,162.31,162.16,18.74537641]
[1633113668341,2.09,162.3,162.12,2.11088]
[1633113668542,2.09,162.3,162.12,10.51938809]
[1633113668743,2.09,162.3,162.12,2.09]
[1633113668943,0.02088,162.29,162.11,493.10886547]
[1633113669145,2.09,162.28,162.07,2.09]
[1633113669344,2.09,162.28,162.08,29.8890768]
[1633113669744,2.09,162.28,162.09,8.41026962]
[1633113670344,2.09,162.28,162.08,29.8890768]
[1633113670748,15.4133,162.26,162.08,29.8890768]
[1633113670945,2.09,162.25,162.09,2.11088]
[1633113671147,2.09,162.3,162.1,0.02088]
[1633113671346,2.09,162.3,162.12,27.98839245]
[1633113671545,2.09,162.3,162.13,2.09]
[1633113671945,2.09,162.3,162.12,28.00927245]
[1633113672146,2.09,162.3,162.12,27.98839245]
[1633113672745,27.59226922,162.3,162.09,0.02088]
[1633113672945,0.02088,162.29,162.06,74.595]
[1633113673146,2.09,162.28,162.06,74.595]
[1633113673348,27.59226922,162.28,162.06,74.595]
[1633113673547,25.50226922,162.27,162.06,74.595]
[1633113673747,2.09,162.26,162.06,74.595]
[1633113673946,2.40592858,162.25,162.06,74.595]
[1633113674147,2.09,162.24,162.06,74.595]
[1633113674547,27.59226922,162.24,162.05,23.43713345]
[1633113674948,25.50226922,162.23,162.05,23.43713345]
[1633113675148,2.09,162.22,162.05,23.43713345]
[1633113675549,27.59226922,162.22,162.05,23.43713345]
[1633113675749,15.4208,162.18,162.05,23.43713345]
[1633113675952,17.5108,162.18,162.05,23.43713345]
[1633113676352,17.5108,162.18,162.02,0.02088]
[1633113676551,25.50226922,162.17,161.96,476.25917132]
[1633113676753,3.19545037,161.96,161.86,7.82696121]
[1633113676953,2.09,161.95,161.78,2.09]
[1633113677151,2.09,161.95,161.76,2.09]
[1633113677354,0.0421776,161.94,161.8,467.84627487]
[1633113677552,2.09,161.93,161.72,0.0800007]
[1633113677753,52.3021776,161.92,161.72,0.0800007]
[1633113677953,2.1321776,161.91,161.72,0.0800007]
[1633113678352,5.31344656,161.91,161.72,0.0800007]
[1633113678555,5.35562416,161.91,161.72,0.0800007]
[1633113678755,2.1321776,161.91,161.72,0.0800007]
[1633113678952,2.09,161.91,161.75,517.41567799]
[1633113679151,2.09,161.91,161.75,0.07]
[1633113679953,2.09,161.91,161.77,26.52467041]
[1633113681554,2.09,161.91,161.77,68.15730658]
[1633113681954,3.19545037,161.96,161.82,24.59611791]
[1633113682154,2.09,161.95,161.82,24.59611791]
[1633113682354,2.09,161.95,161.83,25.79310995]
[1633113682554,2.09,161.95,161.83,50.69725502]
[1633113682754,2.09,161.95,161.85,25.88738707]
[1633113683155,2.09,161.95,161.85,43.54995746]
[1633113683759,2.09,161.95,161.85,25.88738707]
[1633113683955,2.1321776,161.95,161.85,25.88738707]
[1633113684957,1.1321776,161.95,161.85,25.88738707]
[1633113685357,1.09,161.95,161.85,25.88738707]
[1633113685957,1.09,161.95,161.85,519.55130592]
[1633113687359,1.1321776,161.95,161.85,519.55130592]
[1633113687960,1.1321776,161.95,161.85,493.66391885]
[1633113688158,0.0421776,161.94,161.75,0.07]
[1633113688359,2.09,161.93,161.75,0.07]
[1633113688562,0.0421776,161.92,161.75,24.96935995]
[1633113688759,2.09,161.91,161.75,24.96935995]
[1633113688962,2.1321776,161.91,161.76,24.35480326]
[1633113689364,2.1321776,161.91,161.77,24.89935995]
[1633113689761,2.09,161.91,161.8,2.49194593]
[1633113689961,0.0421776,161.99,161.81,23.38213871]
[1633113690160,75.3136,162.01,161.81,62.95049866]
[1633113690161,2.09,161.98,161.81,62.95049866]
[1633113690361,2.09,161.97,161.82,24.89935995]
[1633113690562,2.09,161.96,161.82,24.89935995]
[1633113690961,2.09,161.99,161.84,21.85372339]
[1633113691363,2.09,161.99,161.85,16.86841483]
[1633113692365,2.09,161.99,161.85,44.58444144]
[1633113692565,2.09,161.99,161.85,78.52391801]
[1633113692765,2.09,161.99,161.86,16.86841483]
[1633113692964,0.0421776,161.98,161.78,27.71602661]
[1633113693165,0.0421776,161.96,161.75,0.07]
[1633113693365,2.09,161.95,161.75,3.63387659]
[1633113693566,15.4474,161.91,161.75,3.63387659]
[1633113693767,2.1321776,161.9,161.76,23.5474492]
[1633113693968,0.0421776,161.89,161.76,23.5474492]
[1633113694169,2.09,161.88,161.76,23.5474492]
[1633113694365,2.09,161.88,161.76,51.26130915]
[1633113694565,2.09,161.88,161.76,54.82652327]
[1633113694765,2.09,161.88,161.76,51.26130915]
[1633113695967,2.09,161.88,161.76,54.82614297]
[1633113696367,2.09,161.88,161.77,3.56587217]
[1633113696567,2.09,161.88,161.78,3.56585219]
[1633113696769,2.09,161.88,161.79,29.79859809]
[1633113697369,2.09,161.93,161.79,29.79859809]
[1633113697567,0.0421776,161.96,161.82,3.56492941]
[1633113697767,2.09,161.97,161.83,29.31449044]
[1633113697967,2.09,161.97,161.84,3.56440381]
[1633113698167,2.09,161.97,161.83,60.31965871]
[1633113698366,2.09,161.97,161.85,3.56522422]
[1633113698567,2.09,161.97,161.86,31.90100122]
[1633113698768,2.09,162.0,161.86,46.85500122]
[1633113699166,2.09,162.0,161.87,3.56488771]
[1633113699368,2.09,162.0,161.89,29.99894593]
[1633113699567,0.0421776,162.08,161.89,29.99894593]
[1633113699769,2.09,162.07,161.92,22.44145083]
[1633113699968,2.09,162.07,161.92,37.25145083]
[1633113700167,2.09,162.07,161.93,3.56395882]
[1633113700368,2.09,162.07,161.94,3.56452643]
[1633113700768,2.09,162.07,161.95,33.04389887]
[1633113700966,2.09,162.07,161.95,29.47949827]
[1633113701367,2.09,162.07,161.96,3.56636063]
[1633113702168,0.0421776,162.06,161.96,3.56636063]
[1633113702368,2.09,162.05,161.95,30.00110602]
[1633113702770,2.09,162.05,161.99,3.56773448]
[1633113702966,2.09,162.1,162.0,28.50477336]
[1633113703368,2.09,162.1,162.0,32.07384735]
[1633113703767,2.09,162.1,162.01,3.56902054]
[1633113704167,2.09,162.1,162.02,3.56862925]
[1633113704368,2.09,162.13,162.03,32.53816675]
[1633113704570,2.09,162.13,162.04,3.5684194]
[1633113705367,2.09,162.13,162.05,3.56885003]
[1633113705567,2.09,162.13,162.06,25.21340565]
[1633113705770,2.09,162.13,162.06,28.78199843]
[1633113706168,2.09,162.13,162.08,3.56985803]
[1633113706368,2.1321776,162.17,162.09,30.87358676]
[1633113706568,2.1321776,162.17,162.1,3.56952917]
[1633113706968,2.1321776,162.2,162.12,29.34729771]
[1633113707771,2.09,162.2,162.12,29.34729771]
[1633113708368,2.1321776,162.2,162.08,3.56795727]
[1633113708575,2.1321776,162.2,162.07,3.56823557]
[1633113708770,1.1321776,162.2,162.07,3.56823557]
[1633113708970,1.09,162.2,162.06,3.56840044]
[1633113709169,0.0421776,162.19,162.06,3.56840044]
[1633113709370,2.09,162.18,162.07,22.32443378]
[1633113709573,0.0421776,162.17,162.07,22.32443378]